Cogmind - Beta 12 @@@ ROGUE MODE // 2023.10.29 @ 13:30:20 Player: Ciaphas Result: Destroyed by G-34 Mercenary with Small Laser Performance ------------- Evolutions (0) 0 Regions Visited (2) 400 Robots Destroyed (18) 90 Value Destroyed (457) 457 Prototype IDs (0) 0 Alien Tech Used (0) 0 Bonus (0) 0 TOTAL SCORE: 947 Bonus ------- None Cogmind --------- Core Integrity 0/250 Matter 300/300 Energy 98/100 System Corruption 2% Temperature Cool (6) Movement Core (50) Location -10/Mines Parts ------- > --- POWER (1) -------- (None) > --- PROPULSION (2) --- (None) > --- UTILITY (2) ------ (None) > --- WEAPON (2) ------- (None) > --- INVENTORY (5) ---- Weight Redist. System Core Shielding Spread Laser Particle Cannon Datajack Peak State ------------ > --- POWER ------------ Improved Ion Engine > --- PROPULSION ------- Wheel Wheel > --- UTILITY ---------- Large Storage Unit Weight Redist. System > --- WEAPON ----------- Spread Laser Spread Laser > --- INVENTORY -------- Ion Engine Improved Ion Engine Improved Ion Engine Aluminum Leg Aluminum Leg Medium Storage Unit Huge Storage Unit Sensor Array Core Shielding Power Shielding Beam Cannon Beam Cannon Light Assault Rifle Light Assault Rifle Datajack [Rating: 12] Favorites ----------- Power Light Ion Engine Engine Light Ion Engine Propulsion Wheel Treads Light Treads Leg Aluminum Leg Wheel Wheel Utility Large Storage Unit Device Sensor Array Storage Large Storage Unit Protection Power Shielding Weapon Medium Laser Energy Gun Medium Laser Energy Cannon Particle Cannon Ballistic Gun Light Assault Rifle Special Weapon Mining Laser Special Melee Weapon Datajack Build | -11 -10 -10 ------- Run | Jun Mat Min Slots Evolved . | . . . Power . | . . . Propulsion . | . . . Utility . | . . . Weapon . | . . . Parts Attached 48 | 6 31 11 Power 10 | 1 7 2 Engine 10 | 1 7 2 Core . | . . . Reactor . | . . . Propulsion 9 | 2 2 5 Treads 2 | . . 2 Leg 3 | 1 . 2 Wheel 4 | 1 2 1 Hover . | . . . Flight . | . . . Utility 15 | 1 13 1 Device 6 | 1 5 . Storage 5 | . 5 . Processor . | . . . Hackware . | . . . Protection 4 | . 3 1 Artifact . | . . . Weapon 14 | 2 9 3 Energy Gun 5 | 2 2 1 Energy Cannon 3 | . 2 1 Ballistic Gun 4 | . 4 . Ballistic Cannon . | . . . Launcher . | . . . Special Weapon 1 | . . 1 Impact Weapon . | . . . Slashing Weapon . | . . . Piercing Weapon . | . . . Special Melee Weapon 1 | . 1 . Unidentified Prototypes . | . . . Parts Lost 3 | . 1 2 Power . | . . . Propulsion 1 | . . 1 Utility 2 | . 1 1 Weapon . | . . . Highest Loss Streak 2 | . 1 2 To Critical Strikes . | . . . Average Slot Usage (%) 95 | . 97 91 Engine 13 | . 14 12 Treads 2 | . . 11 Leg 2 | . 1 5 Wheel 21 | . 26 9 Device 7 | . 9 1 Storage 12 | . 12 12 Protection 6 | . 4 11 Energy Gun 14 | . 15 10 Energy Cannon 5 | . 5 6 Ballistic Gun 3 | . 4 . Special Weapon 2 | . . 8 Special Melee Weapon 1 | . 1 . Naked Turns 18 | . . 18 Heaviest Build 87 | 7 87 36 Greatest Support 40 | 10 26 40 Greatest Overweight (x) 4 | . 4 3 Average Overweight (x) . | . . 1 Largest Inventory Capacity 25 | 5 25 15 Average Capacity 11 | 5 11 14 Most Carried 15 | 4 15 12 Average Carried 8 | 2 8 10 Final Capacity 15 | 5 15 5 Final Carried 12 | 4 12 5 Class Distribution -------------------- 100% | Mutant Dominant Class ---------------- Mutant | -10/Materials Mutant | -10/Mines Resources | -11 -10 -10 ----------- Run | Jun Mat Min Matter Collected 696 | 236 355 105 Remotely . | . . . Salvage Created 576 | 43 428 105 Parts 30 | 2 23 5 Haulers Intercepted . | . . . Recyclers Shooed . | . . . Parts Field Recycled . | . . . Retrieved Matter . | . . . Parts Self-Destructed . | . . . Prevented . | . . . Kills | -11 -10 -10 ------- Run | Jun Mat Min Combat Hostiles Destroyed 16 | 1 13 2 Guns 13 | 1 12 . Cannons 3 | . 1 2 Classes Destroyed 5 | 1 3 1 Recycler 1 | . 1 . Watcher 1 | . 1 . Swarmer 6 | . 6 . Grunt 8 | 1 7 . Sentry 2 | . . 2 Best Kill Streak 7 | 1 7 2 Combat Bots Only 7 | 1 7 2 Max Kills in Single Turn 1 | 1 1 1 Gunslinging . | . . . Exploded . | . . . Melee . | . . . Uniques/NPCs Destroyed . | . . . Combat | -11 -10 -10 -------- Run | Jun Mat Min Damage Taken 1026 | 10 471 545 Core 251 | 10 76 165 Absorbed by Shields . | . . . Redirected to Shielding 40 | . 17 23 Regen/Repaired (Parts) 37 | . 37 . Core Remaining (%) 96 | 96 . . Volleys Fired 63 | 2 55 6 Largest 2 | 2 2 2 Hottest 136 | 90 90 136 Shots Fired 108 | 4 94 10 Gun 91 | 4 87 . Cannon 17 | . 7 10 Launcher . | . . . Special . | . . . Kinetic 30 | . 30 . Thermal 78 | 4 64 10 Explosive . | . . . Electromagnetic . | . . . Robot Hit Streak 12 | 3 12 10 Robot Miss Streak 5 | . 5 . Penetration Max . | . . . Secondary Targets 1 | . 1 . Max Gunslinging Chain 1 | . 1 . Shots Hit Robots 74 | 3 62 9 Core Hits 37 | 2 33 2 Critical Kills . | . . . Critical Parts Destroyed . | . . . Critical Strikes 2 | . 2 . Burn 2 | . 2 . Melee Attacks 4 | . 4 . Impact . | . . . Slashing . | . . . Piercing . | . . . Sneak Attacks 3 | . 3 . Combat Hostiles . | . . . Follow-up Attacks . | . . . Damage Inflicted 956 | 35 713 208 Guns 662 | 35 627 . Cannons 280 | . 75 205 Explosions . | . . . Melee . | . . . Ramming 14 | . 11 3 Kinetic 137 | . 137 . Thermal 805 | 35 565 205 Explosive . | . . . Electromagnetic . | . . . Impact . | . . . Slashing . | . . . Piercing . | . . . Highest Corruption 2 | . . 2 Average Corruption 2 | . . 2 Corruption Purged . | . . . Corruption Blocked . | . . . Overload Shots . | . . . Overflow Damage . | . . . Projectiles . | . . . Explosions . | . . . Melee . | . . . Knockbacks . | . . . Impact . | . . . Kinetic . | . . . Secondary . | . . . Self-Inflicted Damage 6 | . 5 1 Shots . | . . . Rammed 3 | . 2 1 Targets Rammed 3 | . 2 1 Kicked . | . . . Crushed . | . . . Highest Temperature 366 | 66 255 366 Average Temperature 105 | 35 93 177 Received Heat Transfer 366 | 6 201 159 Effects 1 | . . 1 Interference 1 | . . 1 Siege Activations . | . . . Robots Corrupted . | . . . Combat Hostiles . | . . . Parts Fried . | . . . Impact Corruptions . | . . . Robots Melted . | . . . Combat Hostiles . | . . . Parts Melted 2 | . 1 1 Heat Transferred 1948 | 99 1479 370 Parts Sabotaged . | . . . Parts Stolen . | . . . Parts Stripped . | . . . Power Chain Reactions . | . . . Missiles Intercepted . | . . . Alert | -11 -10 -10 ------- Run | Jun Mat Min Peak Influence 329 | 20 329 98 Initial 63 | . 13 63 Average 138 | 5 169 92 Maximum Alert Level 1 | . 1 . Low Security (%) 76 | 100 65 100 Level 1 23 | . 34 . Level 2 . | . . . Level 3 . | . . . Level 4 . | . . . Level 5 . | . . . High Security . | . . . Max Security . | . . . Squads Dispatched 2 | . 2 . Investigation 2 | . 2 . Extermination . | . . . Reinforcement . | . . . Assault . | . . . Garrison . | . . . Intercept . | . . . Searches Triggered . | . . . Construction Impeded . | . . . Haulers Reinforced . | . . . Active Scanning Responses . | . . . Cargo Convoy Interrupts . | . . . Stealth | -11 -10 -10 --------- Run | Jun Mat Min Distress Signals 1 | . 1 . Communications Jammed . | . . . Distress Signals . | . . . Times Spotted 39 | 1 25 13 Peak Tracking Total 8 | 1 6 8 Tactical Retreats 1 | . 1 . Traps | -11 -10 -10 ------- Run | Jun Mat Min Traps Triggered . | . . . Indirectly . | . . . Trap Hack Attempts . | . . . Triggered . | . . . Disarmed . | . . . Reprogrammed . | . . . Reused . | . . . Traps Extracted . | . . . Installed . | . . . Triggered . | . . . Machines | -11 -10 -10 ---------- Run | Jun Mat Min Machines Disabled . | . . . Max in Single Turn . | . . . Machines Repaired . | . . . Machines Sabotaged . | . . . Overloaded Fab Kills . | . . . Hacking | -11 -10 -10 --------- Run | Jun Mat Min Machines Accessed 10 | . 10 . Terminals 7 | . 7 . Fabricators . | . . . Repair Stations 1 | . 1 . Recycling Units 2 | . 2 . Scanalyzers . | . . . Garrison Access . | . . . Total Hacks 36 | . 36 . Successful 25 | . 25 . Failed 10 | . 10 . Catastrophic 1 | . 1 . Database Lockouts 1 | . 1 . Manual 10 | . 10 . Terminals 29 | . 29 . Fabricators . | . . . Repair Stations 3 | . 3 . Recycling Units 4 | . 4 . Scanalyzers . | . . . Garrison Access . | . . . Terminal Hacks 16 | . 16 . Record 10 | . 10 . Alert Level 2 | . 2 . Unreport Threat 1 | . 1 . Locate Traps 2 | . 2 . Dispatch Records 1 | . 1 . Fabricator Hacks . | . . . Repair Station Hacks 2 | . 2 . Scan Component 1 | . 1 . Repair 1 | . 1 . Recycling Unit Hacks 2 | . 2 . Report Inventory 2 | . 2 . Scanalyzer . | . . . Garrison Access Hacks . | . . . Unauthorized Hacks 5 | . 5 . Terminals 3 | . 3 . Botnet 3 | . 3 . Fabricators . | . . . Repair Stations . | . . . Recycling Units 2 | . 2 . Tunnel 2 | . 2 . Scanalyzers . | . . . Garrison Access . | . . . Data Cores Recovered . | . . . Used . | . . . Hacking Detections 7 | . 7 . Full Trace Events 2 | . 2 . Feedback Events . | . . . Feedback Blocked . | . . . Robot Schematics Acquired . | . . . Robots Built . | . . . Authchips . | . . . Time . | . . . Total Robot Build Rating . | . . . Part Schematics Acquired . | . . . Parts Built . | . . . Authchips . | . . . Time . | . . . Total Part Build Rating . | . . . Parts Repaired 1 | . 1 . Time 26 | . 26 . Parts Recycled . | . . . Recycled Matter . | . . . Retrieved Matter . | . . . Retrieved Components . | . . . Parts Scanalyzed . | . . . Part Schematics Acquired . | . . . Parts Damaged . | . . . Bothacking | -11 -10 -10 ------------ Run | Jun Mat Min Used RIF Installer . | . . . Robots Hacked 3 | . 3 . Non-combat 3 | . 3 . Combat . | . . . Robot Hacks Applied 4 | . 4 . parse_system 2 | . 2 . no_distress 2 | . 2 . Relay Couplers Released . | . . . Fabnet Peak Effective % . | . . . Robots Rewired . | . . . Allies Hacked . | . . . Hacks Repelled . | . . . Allies | -11 -10 -10 -------- Run | Jun Mat Min Total Allies . | . . . Largest Group . | . . . Highest-Rated Group . | . . . Highest-Rated Ally . | . . . Total Orders . | . . . Ally Attacks . | . . . Total Damage . | . . . Kills . | . . . Allies Corrupted . | . . . Allies Melted . | . . . Intel | -11 -10 -10 ------- Run | Jun Mat Min Robot Analysis Total . | . . . Derelict Logs Recovered . | . . . Drone Launches . | . . . Drone Recoveries . | . . . Exploration | -11 -10 -10 ------------- Run | Jun Mat Min Turns Passed 1040 | 83 712 245 Spaces Moved 800 | 80 542 178 Core 54 | 16 . 38 Treads 13 | . . 13 Legs 18 | 14 . 4 Wheels 715 | 50 542 123 Hover . | . . . Flight . | . . . Fastest Speed 50 | 50 80 50 Average Speed 90 | 81 84 112 Slowest Speed 240 | 120 140 240 Overloaded Moves . | . . . Propulsion Burnouts . | . . . Robots Hopped . | . . . Cave-ins Triggered . | . . . Exploration Rate (%) 39 | 8 74 35 Regions Visited 2 Branch Regions 1 Pre-discovered Areas 2 | . 2 . Known Exits Taken . | . . . Unknown Exits Taken 2 | 1 1 . Scrap Searched 1 | . . 1 Spaces Dug . | . . . Terrain Destroyed . | . . . Melee . | . . . Projectile . | . . . AOE . | . . . Terrain Rammed . | . . . Walls Destroyed . | . . . Machines Disabled . | . . . Actions | -11 -10 -10 --------- Run | Jun Mat Min Total 1006 | 91 704 211 Wait 49 | . 39 10 Move 798 | 79 541 178 Hop . | . . . Pick Up 13 | 4 9 . Fast Attach 22 | 6 12 4 Attach 5 | . 3 2 Detach 10 | . 9 1 Swap 21 | . 16 5 Drop 18 | . 14 4 Fire 63 | 2 55 6 Melee 4 | . 4 . Ram 3 | . 2 1 Kick . | . . . Crush . | . . . Escape Stasis . | . . . Rewire . | . . . Trap . | . . . Miscellaneous . | . . . Route ------- -11/Junkyard -10/Materials (discovered 2 exits: [*Mat] / [*Min]) -10/Mines History --------- Turn | Location | Event 2 | -11/Junkyard | Met Revision 17 56 | -11/Junkyard | Discovered new exit (range 8) 84 | -11/Junkyard | Entered Materials 318 | -10/Materials | Build established: Mutant 386 | -10/Materials | Destroyed 7 combat bots 480 | -10/Materials | Discovered new exit (range 12) 575 | -10/Materials | Discovered new exit (range 16) 650 | -10/Materials | Central database locked down 706 | -10/Materials | Repaired Wheel 796 | -10/Materials | Entered Mines 825 | -10/Mines | Core integrity fell below 50% 997 | -10/Mines | Assembled infested the area 1023 | -10/Mines | Released all parts (7) 1029 | -10/Mines | Core integrity fell below 20% 1041 | -10/Mines | Destroyed by G-34 Mercenary with Small Laser Last Messages --------------- squad. 01006_ Searching scrap... 01006_ Found Lrg. Storage Unit. 01006_ Found 24 Matter. 01014_ Slammed into K-01 Serf. 01014_ Destabilizing: System corrupted (+2). 01023_ Released Mining Laser. 01023_ Released Wheel. 01023_ Released Lgt. Treads. 01023_ Released Lrg. Storage Unit. 01023_ Released Power Shielding. 01023_ Released Imp. Ion Engine. 01023_ Released Beam Rifle. 01028_ C-30 ARC bursts open, deploying its payload. 01028_ D-53 Grenadier unfolds itself. 01030_ T-07 Excavator destroyed. 01032_ K-01 Serf destroyed. 01033_ as-42330 destroyed. 01035_ as-62946 destroyed. 01036_ The unstable cave ceiling collapses. Map ----- +----------------------------------------------------+ | ????????????????????????????????????????????? | | ????????????????????????????????????????????? | | ????????????????????????????????????????????? | | ????????????????????????????????????????????? | | ????????????????????????????????????????????? | | ????????????????????????????????????????????? | | ????????????????????????????????????????????? | | ????????????????????????????????????????????? | | ????????????????????????????????????????????? | | ????????????????????????????????????????????? | | ???????????????????????? #??????????????????? | | ???????????????????????? #? ??????????????? | | ???????????????????????" # #???????????? | | ??????????????????????"" #??????????? | | ??????????????????????"" #?????????? | | ????????????????????? ??????????? | | ????????????????????? g g ???????????? | | ????????????????????? ????????????? | | ????????????????????# ?????????????? | | ??????????????????## ?? ??????????????? | | ######????????????# ?? ???????????????? | | #"[!"##???????????# ??? #???????????????? | | ""! ""#??????????## ??? #???????????????? | | #??????????# #???# #???????????????? | | # ##?????????## ##?## #???????????????? | | ##++###????????## ### @ #????????????????? | | #???????## #????????????????? | | ##?????## ##????????????????? | | #?????# #####?????????????????? | | #?????# ##?????????????????????? | | ####### ####??????????????????????? | | ## ##?????????????????????????? | | ##### ## #??????????????????????????? | | #???# #??????????????????????????? | | ########???#### ###????????????????????????? | | ???????????#### ##???????????????????????? | | ??????????## ####????????????????????? | | ??????????# " ##???????????????????? | | ??????????# "%" ###########?????????? | | ??????????## " * #?????????? | | ???????????## !%= ????????? | | ????????????## ########## ?????????? | | ?????????????## ##????????????????????? | | ??????????????## ##????????????????????? | | ???????????????# #????????????????????? | | ???###??######## # #????????????????????? | | ??## ### % ##????????????????????? | | ??# % #?????????????????????? | | ??# # ##?????????????????????? | | ?## ## # ####??????????????????????? | +----------------------------------------------------+ Best States ------------- Heat Dissipation 35 Energy Generation 12 Energy Capacity 265 Matter Stores 300 Matter Capacity 300 Sight Range 16 Robot Scan Range 14 Terrain Scan Density 10 Additional Mass Support 6 Core Shielding 20 Power Shielding 33 Evasion (%) 50 Recoil Reduction 2 Item Schematics ----------------- None Robot Schematics ------------------ None Fabricated ------------ Nothing Alien Tech Used ----------------- None Achievements -------------- None Challenges ------------ None Game ------ Seed BiocellBiometalRouter Manual? 0 Play Time 00:32:05 Cumulative 4.6 hours Start 2023.10.29 @ 12:55:08 End 2023.10.29 @ 13:30:20 Sessions 1 Manual Loads 0 Difficulty Rogue Special Mode None Game No. 2 Rogue 1 Adventurer 1 Explorer 0 Win Type - Total 0 Types 0/0/0/0/0/0/0/0/0 Lore% 14 Gallery% 8 Achievement% 21 Wizard Run 0 Options --------- ASCII 0 Keyboard 0 Movement Mouse Keybinds 0 Fullscreen 1 Font 24/Smallcaps Map View 76x50 Tactical HUD 1 Map Filters NONE Filters NONE Steam 1 RUN: 0bf63486-dde1-43ac-b4b5-5c2bdeb2f7de